fUST/lending_fUST_20241019
["ID","MTS","AMOUNT","RATE_DAILY","PERIOD"]
[340489512,1729326536002,-1000.0,0.0001289,2]
[340489513,1729326536024,-373.49433388,0.000129,2]
[340489514,1729326536046,-23012.32272106,0.000129,2]
[340489515,1729326570858,-300.0,0.00012899,2]
[340489516,1729326570885,-300.0,0.00012899,2]
[340489517,1729326570914,-6987.67727894,0.000129,2]
[340489518,1729326570940,-32421.66177041,0.000129,2]
[340489519,1729326570965,-1734.52576958,0.000129,2]
[340489520,1729326570988,-5000.0,0.000129,2]
[340489521,1729326571010,-64735.7244191,0.0001297,2]
[340489522,1729326571034,-62109.507172,0.0001297,2]
[340489523,1729326571057,-500.93655849,0.00012973,2]
[340489524,1729326571082,-236.55133721,0.00012973,2]
[340489525,1729326571106,-500.0,0.00012973,2]
[340489526,1729326571129,-556.03488229,0.00012973,2]
[340489527,1729326571154,-510.8540067,0.00012973,2]
[340489528,1729326571175,-506.76823723,0.00012973,2]
[340489529,1729326571200,-452.4484354,0.00012973,2]
[340489530,1729326571224,-630.74783249,0.00012973,2]
[340489531,1729326571245,-507.17511348,0.00012973,2]
[340489532,1729326571266,-382.38718668,0.00012973,2]
[340489538,1729326631952,-642.81,0.00010959,2]
[340489539,1729326631975,-535.68,0.00010959,2]
[340489540,1729326631999,-446.4,0.00010959,2]
[340489542,1729326632024,-372.0,0.00010959,2]
[340489545,1729326632047,-310.0,0.00010959,2]
[340489549,1729326632069,-152.0,0.0001163,2]
[340489552,1729326632091,-480.9250283,0.00011738,2]
[340489556,1729326632113,-943.26359393,0.0001188,2]
[340489559,1729326632136,-250.0,0.00011988,2]
[340489562,1729326632160,-300.0,0.00012017,2]
[340489565,1729326632182,-300.0,0.00012017,2]
[340489569,1729326632208,-24900.0,0.00012018,2]
[340489572,1729326632234,-1000.0,0.0001289,2]
[340489575,1729326632257,-1289.68514392,0.000129,2]
[340489579,1729326632284,-530.17768549,0.000129,2]
[340489582,1729326632306,-197.91300588,0.00012973,2]
[340489585,1729326632329,-500.0,0.00012973,2]
[340489586,1729326632350,-502.17698199,0.00012973,2]
[340489587,1729326632372,-500.0,0.00012973,2]
[340489588,1729326632395,-500.0,0.00012973,2]
[340489589,1729326632416,-513.97393213,0.00012973,2]
[340489590,1729326632438,-504.6077454,0.00012973,2]
[340489591,1729326632460,-504.98298957,0.00012973,2]
[340489592,1729326632486,-150.05939295,0.00012973,2]
[340489593,1729326632508,-80385.79200011,0.0001298,2]
[340489594,1729326632530,-151.0,0.0001298,2]
[340489595,1729326632554,-151.0,0.0001298,2]
[340489596,1729326632582,-151.0,0.0001298,2]
[340489597,1729326632609,-151.0,0.0001298,2]
[340489598,1729326632633,-152.256483,0.0001298,2]
[340489599,1729326632657,-151.0,0.0001298,2]
[340489600,1729326632679,-151.0,0.0001298,2]
[340489601,1729326632703,-170.819129,0.0001298,2]
[340489602,1729326632726,-170.819129,0.0001298,2]
[340489603,1729326632749,-170.819129,0.0001298,2]
[340489604,1729326632773,-170.819129,0.0001298,2]
[340489605,1729326632795,-64735.7244191,0.0001298,2]
[340489606,1729326632818,-62109.507172,0.0001298,2]
[340489607,1729326632840,-151.0,0.0001299,2]
[340489608,1729326632863,-151.0,0.0001299,2]
[340489609,1729326632886,-360.481865,0.0001299,2]
[340489610,1729326632908,-166.408316,0.0001299,2]
[340489611,1729326632934,-360.481865,0.0001299,2]
[340489612,1729326632957,-151.0,0.0001299,2]
[340489613,1729326632979,-399.532037,0.0001299,2]
[340489614,1729326633000,-151.0,0.0001299,2]
[340489615,1729326633023,-399.532037,0.0001299,2]
[340489616,1729326633045,-151.0,0.0001299,2]
[340489617,1729326633067,-151.0,0.0001299,2]
[340489618,1729326633090,-309.76438,0.0001299,2]
[340489619,1729326633112,-309.76438,0.0001299,2]
[340489620,1729326633134,-151.0,0.0001299,2]
[340489621,1729326633157,-786.827348,0.0001299,2]
[340489622,1729326633179,-786.827348,0.0001299,2]
[340489623,1729326633202,-108984.16833423,0.0001299,2]
[340489624,1729326633707,-2723.41387444,0.0001299,2]
[340489625,1729326633718,-1400.01032945,0.0001299,2]
[340489626,1729326633731,-1455.64346195,0.0001299,2]
[340489654,1729326639884,-258.33,0.00010959,2]
[340489655,1729326639893,-202.91655817,0.0001298,2]
[340489656,1729326640003,-666.39267983,0.0001298,2]
[340489657,1729326640013,-231.9281463,0.0001298,2]
[340489658,1729326640027,-637.3810917,0.0001298,2]
[340489659,1729326640037,-19.2589083,0.0001299,2]
[340489660,1729326640198,-892.190604,0.0001299,2]
[340489661,1729326640211,-496.36527315,0.0001299,2]
[340489671,1729326643340,-511.63976623,0.00012973,2]
[340489672,1729326643350,-869.309238,0.0001298,2]
[340489673,1729326643359,-869.309238,0.0001298,2]
[340489674,1729326643369,-78236.12247148,0.0001299,2]
[340489675,1729326643379,-186328.521516,0.0001299,2]
[340489676,1729326643388,-151.0,0.0001299,2]
[340489677,1729326643397,-194.086338,0.0001299,2]
[340489678,1729326643407,-153.256201,0.0001299,2]
[340489679,1729326643418,-194.086338,0.0001299,2]
[340489680,1729326643430,-194.086338,0.0001299,2]
[340489681,1729326643443,-194.086338,0.0001299,2]
[340489682,1729326643454,-151.0,0.0001299,2]
[340489683,1729326643463,-151.0,0.0001299,2]
[340489684,1729326643473,-364.589374,0.0001299,2]
[340489685,1729326643482,-364.589374,0.0001299,2]
[340489686,1729326643493,-151.178728,0.0001299,2]
[340489687,1729326643504,-364.589374,0.0001299,2]
[340489688,1729326643515,-364.589374,0.0001299,2]
[340489689,1729326643525,-756.793943,0.0001299,2]
[340489690,1729326643535,-756.793943,0.0001299,2]
[340489691,1729326643544,-151.0,0.0001299,2]
[340489692,1729326643554,-756.793943,0.0001299,2]
[340489693,1729326643563,-151.0,0.0001299,2]
[340489694,1729326643574,-756.793943,0.0001299,2]
[340489695,1729326643585,-151.0,0.0001299,2]
[340489696,1729326643596,-151.0,0.0001299,2]
[340489697,1729326643606,-151.0,0.0001299,2]
[340489698,1729326643616,-248.855434,0.0001299,2]
[340489699,1729326643626,-170.819129,0.0001299,2]
[340489700,1729326643636,-170.819129,0.0001299,2]
[340489701,1729326643646,-170.819129,0.0001299,2]
[340489702,1729326643657,-170.819129,0.0001299,2]
[340489703,1729326643667,-153.830803,0.0001299,2]
[340489704,1729326643676,-151.0,0.0001299,2]
[340489705,1729326643687,-151.0,0.0001299,2]
[340489706,1729326643697,-151.0,0.0001299,2]
[340489707,1729326643706,-869.309238,0.0001299,2]
[340489708,1729326643717,-869.309238,0.0001299,2]
[340489709,1729326643726,-869.309238,0.0001299,2]
[340489710,1729326643736,-869.309238,0.0001299,2]
[340489711,1729326643752,-103055.10659395,0.00013,2]
[340489712,1729326644032,-1353.26088849,0.00013,2]
[340489713,1729326644073,-31800.74677756,0.00013,2]
[340489714,1729326644083,-151.0,0.00013,2]
[340489715,1729326644093,-150.112233,0.00013,2]
[340489716,1729326644104,-150.112233,0.00013,2]
[340489717,1729326644114,-151.0,0.00013,2]
[340489718,1729326644126,-499.836807,0.00013,2]
[340489719,1729326644135,-499.836807,0.00013,2]
[340489720,1729326644146,-151.0,0.00013,2]
[340489721,1729326644157,-151.0,0.00013,2]
[340489722,1729326644168,-151.0,0.00013,2]
[340489723,1729326644178,-360.481865,0.00013,2]
[340489724,1729326644188,-360.481865,0.00013,2]
[340489725,1729326644198,-151.0,0.00013,2]
[340489726,1729326644210,-399.532037,0.00013,2]
[340489727,1729326644222,-151.0,0.00013,2]
[340489728,1729326644232,-399.532037,0.00013,2]
[340489729,1729326644243,-151.0,0.00013,2]
[340489730,1729326644255,-151.0,0.00013,2]
[340489731,1729326644266,-309.76438,0.00013,2]
[340489732,1729326644276,-309.76438,0.00013,2]
[340489733,1729326644286,-151.0,0.00013,2]
[340489734,1729326644296,-786.827348,0.00013,2]
[340489735,1729326644307,-786.827348,0.00013,2]
[340489736,1729326644317,-194.086338,0.00013,2]
[340489737,1729326644327,-194.086338,0.00013,2]
[340489738,1729326644337,-151.0,0.00013,2]
[340489739,1729326644347,-364.589374,0.00013,2]
[340489740,1729326644357,-364.589374,0.00013,2]
[340489741,1729326644368,-756.793943,0.00013,2]
[340489742,1729326644379,-151.0,0.00013,2]
[340489743,1729326644390,-756.793943,0.00013,2]
[340489744,1729326644401,-151.0,0.00013,2]
[340489745,1729326644412,-170.819129,0.00013,2]
[340489746,1729326644423,-170.819129,0.00013,2]
[340489747,1729326644434,-151.0,0.00013,2]
[340489748,1729326644444,-151.0,0.00013,2]
[340489749,1729326644454,-151.0,0.00013,2]
[340489750,1729326644464,-869.309238,0.00013,2]
[340489751,1729326644474,-869.309238,0.00013,2]
[340489752,1729326644485,-150.112233,0.000131,2]
[340489753,1729326644497,-150.112233,0.000131,2]
[340489754,1729326644507,-150.112233,0.000131,2]
[340489755,1729326644517,-150.112233,0.000131,2]
[340489756,1729326644527,-414.6078501,0.000131,2]
[340489757,1729326644537,-414.7253715,0.000131,2]
[340489758,1729326644547,-420.9697211,0.000131,2]
[340489759,1729326644558,-216.2961639,0.000131,2]
[340489760,1729326644568,-210.5530868,0.000131,2]
[340489761,1729326644578,-150.112233,0.000131,2]
[340489762,1729326644588,-150.112233,0.000131,2]
[340489763,1729326644598,-210.5530868,0.000131,2]
[340489764,1729326644608,-414.6078501,0.000131,2]
[340489765,1729326644617,-210.5530868,0.000131,2]
[340489766,1729326644628,-414.7253715,0.000131,2]
[340489767,1729326644637,-608.6092208,0.0001311,2]
[340489768,1729326644646,-8286.39279213,0.00013173,2]
[340489769,1729326644656,-420.0,0.00013191,2]
[340489770,1729326644665,-150.112233,0.000132,2]
[340489771,1729326644674,-302.1038448,0.000132,2]
[340489772,1729326644685,-150.112233,0.000132,2]
[340489773,1729326644696,-150.112233,0.000132,2]
[340489774,1729326644707,-150.112233,0.000132,2]
[340489775,1729326644717,-420.0,0.00013218,2]
[340489776,1729326644727,-951.55974115,0.00013247,2]
[340489777,1729326644738,-1000.0,0.00013247,2]
[340489778,1729326644747,-631.33063644,0.00013247,2]
[340489779,1729326644757,-467.11713143,0.0001329,2]
[340489780,1729326644766,-150.112233,0.000133,2]
[340489781,1729326644777,-150.112233,0.000133,2]
[340489782,1729326644787,-150.112233,0.000133,2]
[340489783,1729326644797,-150.112233,0.000133,2]
[340489784,1729326644807,-150.112233,0.000133,2]
[340489785,1729326644817,-150.112233,0.000133,2]
[340489786,1729326644827,-150.112233,0.000134,2]
[340489787,1729326644837,-150.112233,0.000134,2]
[340489788,1729326644847,-150.112233,0.000134,2]
[340489789,1729326644857,-150.112233,0.000134,2]
[340489790,1729326644868,-150.112233,0.000134,2]
[340489791,1729326644877,-150.112233,0.000134,2]
[340489792,1729326644888,-150.112233,0.000134,2]
[340489793,1729326644898,-62109.507172,0.00013415,2]
[340489794,1729326644908,-191.515154,0.00013415,2]
[340489795,1729326644918,-151.0,0.00013415,2]
[340489796,1729326644931,-170.819129,0.00013415,2]
[340489797,1729326644941,-170.819129,0.00013415,2]
[340489798,1729326644952,-151.0,0.00013415,2]
[340489799,1729326644961,-151.0,0.00013415,2]
[340489800,1729326644972,-151.0,0.00013415,2]
[340489801,1729326644981,-869.309238,0.00013415,2]
[340489802,1729326644993,-869.309238,0.00013415,2]
[340489803,1729326645003,-139858.50604894,0.00013425,2]
[340489804,1729326645014,-194.086338,0.00013425,2]
[340489805,1729326645024,-194.086338,0.00013425,2]
[340489806,1729326645034,-162.326593,0.00013425,2]
[340489807,1729326645045,-364.589374,0.00013425,2]
[340489808,1729326645055,-364.589374,0.00013425,2]
[340489809,1729326645065,-756.793943,0.00013425,2]
[340489810,1729326645075,-756.793943,0.00013425,2]
[340489811,1729326645085,-151.0,0.00013425,2]
[340489812,1729326645268,-170.819129,0.00013425,2]
[340489813,1729326645279,-170.819129,0.00013425,2]
[340489814,1729326645289,-258.739274,0.00013425,2]
[340489815,1729326645300,-154.481401,0.00013425,2]
[340489816,1729326645309,-151.0,0.00013425,2]
[340489817,1729326645319,-869.309238,0.00013425,2]
[340489818,1729326645329,-151.0,0.00013433,2]
[340489819,1729326645340,-151.0,0.00013433,2]
[340489820,1729326645350,-360.481865,0.00013433,2]
[340489821,1729326645360,-360.481865,0.00013433,2]
[340489822,1729326645371,-151.0,0.00013433,2]
[340489823,1729326645381,-399.532037,0.00013433,2]
[340489824,1729326645391,-151.0,0.00013433,2]
[340489825,1729326645402,-399.532037,0.00013433,2]
[340489826,1729326645412,-151.0,0.00013433,2]
[340489827,1729326645423,-211.686909,0.00013433,2]
[340489828,1729326645434,-309.76438,0.00013433,2]
[340489829,1729326645444,-309.76438,0.00013433,2]
[340489830,1729326645454,-151.0,0.00013433,2]
[340489831,1729326645464,-786.827348,0.00013433,2]
[340489832,1729326645473,-110.75904798,0.00013433,2]
[340489877,1729326646351,-215.27,0.00010959,2]
[340489878,1729326646362,-411.41295598,0.00013425,2]
[340489879,1729327107339,250.0,0.00010394,2]
[340489887,1729327398381,300.0,0.000104,2]
[340489888,1729327482471,250.0,0.00010322,2]
[340489889,1729327482689,250.0,0.0001035,2]
[340489890,1729327482901,250.0,0.00010379,2]
[340489891,1729327501603,158.97147261,0.00010392,2]
[340489892,1729327503150,4710.9903939,9.73e-05,2]
[340489893,1729327554984,24900.0,9.744e-05,2]
[340489894,1729327614789,1210.507563,0.00010084,2]
[340489895,1729327634848,250.0,9.952e-05,2]
[340489903,1729327713940,-250.0,0.00010407,2]
[340489904,1729327713968,-250.0,0.00010435,2]
[340489905,1729327713996,-250.0,0.00010463,2]
[340489906,1729327714022,-2635.3927682,0.0001047,2]
[340489907,1729327714050,-250.0,0.00010492,2]
[340489908,1729327762412,3000.0,0.0001014,2]
[340489938,1729327839469,-250.0,0.0001052,2]
[340489939,1729327839480,-250.0,0.00010548,2]
[340489940,1729327839491,-250.0,0.00010577,2]
[340489941,1729327839503,-250.0,0.00010605,2]
[340489942,1729327839512,-250.0,0.00010633,2]
[340489943,1729327839523,-250.0,0.00010662,2]
[340489944,1729327839535,-250.0,0.0001069,2]
[340489945,1729327839545,-250.0,0.00010718,2]
[340489946,1729327839555,-250.0,0.00010746,2]
[340489947,1729327839564,-250.0,0.00010775,2]
[340489948,1729327839575,-250.0,0.00010803,2]
[340489949,1729327839584,-250.0,0.00010831,2]
[340489950,1729327839594,-250.0,0.0001086,2]
[340489951,1729327839607,-179.4,0.00010959,2]
[340489952,1729327839616,-897.0,0.00010959,2]
[340489953,1729327839624,-1858.9729867,0.00012365,2]
[340489954,1729327839634,-300.0,0.00012869,2]
[340489955,1729327839644,-300.0,0.00012869,2]
[340489956,1729327839653,-414.05718166,0.0001287,2]
[340489957,1729327839662,-24548.29555024,0.0001287,2]
[340489960,1729327840770,-1769.98126115,0.0001287,2]
[340489986,1729327843705,-6579.14519783,0.0001287,2]
[340490007,1729327846527,-262.0,0.0001287,2]
[340490008,1729327846652,-2757.32420178,0.0001287,2]
[340490009,1729327846663,-2372.90201107,0.000129,2]
[340490010,1729327846673,-151.0,0.0001299,2]
[340490011,1729327846683,-151.0,0.00013,2]
[340490012,1729327846695,-2227.2595478,0.0001311,2]
[340490013,1729327846705,-470.82664943,0.00013256,2]
[340490014,1729327846715,-8888.06308996,0.00013332,2]
[340490015,1729327846724,-153.0,0.0001337,2]
[340490016,1729327846735,-153.0,0.0001337,2]
[340490017,1729327846745,-153.0,0.0001337,2]
[340490018,1729327846755,-153.0,0.0001337,2]
[340490019,1729327846765,-308.1381125,0.0001337,2]
[340490020,1729327846776,-155.50453261,0.000134,2]
[340490021,1729327846786,-150.112233,0.000134,2]
[340490022,1729327846796,-151.0,0.00013415,2]
[340490023,1729327846805,-273.902347,0.00013425,2]
[340490024,1729327846815,-1000.0,0.00013431,2]
[340490025,1729327846830,-42.76727485,0.00013441,2]
[340490028,1729328221605,500.54351507,0.00027,60]
[340490111,1729329038832,-300.0,0.00011727,2]
[340490112,1729329038843,-200.0,0.00011727,2]
[340490119,1729329039824,-100.0,0.00011727,2]
[340490120,1729329039835,-3658.9982687,0.00011728,2]
[340490121,1729329039847,-1965.54671887,0.00011728,2]
[340490122,1729329039859,-597.87012437,0.00011728,2]
[340490138,1729329045764,-2058.53135892,0.00011728,2]
[340490196,1729330231949,-300.0,0.00010635,2]
[340490197,1729330231959,-300.0,0.00010635,2]
[340490198,1729330231969,-9118.4658705,0.00010636,2]
[340490220,1729330239629,-15781.5341295,0.00010636,2]
[340490221,1729330239640,-3000.0,0.00010961,2]
[340490222,1729330239651,-336.64351244,0.00011242,2]
[340490223,1729330239663,-250.0,0.00011403,2]
[340490224,1729330239674,-8888.06308996,0.00011405,2]
[340490225,1729330239686,-250.0,0.00011434,2]
[340490226,1729330239697,-250.0,0.00011466,2]
[340490227,1729330239707,-250.0,0.00011497,2]
[340490228,1729330239717,-250.0,0.00011528,2]
[340490229,1729330239727,-250.0,0.0001156,2]
[340490230,1729330239737,-250.0,0.00011591,2]
[340490232,1729330239747,-250.0,0.00011622,2]
[340490233,1729330239759,-250.0,0.00011653,2]
[340490234,1729330239770,-250.0,0.00011685,2]
[340490235,1729330239781,-420.0,0.00011691,2]
[340490236,1729330239791,-420.0,0.00011699,2]
[340490237,1729330239801,-250.0,0.00011716,2]
[340490239,1729330239811,-250.0,0.00011747,2]
[340490241,1729330239820,-250.0,0.00011779,2]
[340490243,1729330239830,-250.0,0.0001181,2]
[340490245,1729330239840,-250.0,0.00011841,2]
[340490247,1729330239850,-250.0,0.00011872,2]
[340490249,1729330239861,-318.118,0.00011879,2]
[340490250,1729330239871,-250.0,0.00011904,2]
[340490251,1729330240111,-250.0,0.00011935,2]
[340490252,1729330240122,-250.0,0.00011966,2]
[340490253,1729330240134,-250.0,0.00011998,2]
[340490254,1729330240145,-839.74012171,0.000125,2]
[340490255,1729330240155,-587.0,0.00012852,2]
[340490256,1729330240166,-587.0,0.00012869,2]
[340490257,1729330240175,-1781.8076382,0.0001292,2]
[340490258,1729330240188,-151.336465,0.000131,2]
[340490259,1729330240198,-465.53674108,0.00013223,2]
[340490260,1729330240208,-174.62220377,0.00013301,2]
[340490261,1729330240218,-150.494,0.0001332,2]
[340490262,1729330240229,-584.294,0.0001332,2]
[340490263,1729330240239,-529.962,0.0001332,2]
[340490264,1729330240249,-174.62220377,0.00013361,2]
[340490265,1729330240259,-1140.15851092,0.00013386,2]
[340490266,1729330240269,-2500.0,0.000134,2]
[340490267,1729330240281,-150.112233,0.000134,2]
[340490268,1729330240293,-150.0,0.000134,2]
[340490269,1729330240302,-20000.0,0.000134,2]
[340490270,1729330240313,-1000.0,0.00013401,2]
[340490271,1729330240325,-1026.26696616,0.00013406,2]
[340490272,1729330240335,-1781.8076382,0.0001342,2]
[340490273,1729330240347,-1485.02256811,0.00013432,2]
[340490274,1729330240357,-150.01,0.0001344,2]
[340490275,1729330240368,-2836.97852216,0.0001344,2]
[340490276,1729330240380,-11228.0416057,0.0001346,2]
[340490277,1729330240394,-305188.359734,0.0001346,2]
[340490278,1729330240404,-841.28515191,0.00013461,2]
[340490279,1729330240416,-500.0,0.00013473,2]
[340490280,1729330240425,-500.0,0.00013473,2]
[340490281,1729330240434,-500.0,0.00013473,2]
[340490282,1729330240443,-11228.0416057,0.00013482,2]
[340490283,1729330240455,-76297.0899335,0.00013482,2]
[340490284,1729330240466,-2807.01040143,0.00013491,2]
[340490285,1729330240477,-5614.02080286,0.00013491,2]
[340490286,1729330240487,-1000.0,0.00013496,2]
[340490287,1729330240500,-150.112233,0.000135,2]
[340490288,1729330240510,-150.112233,0.000135,2]
[340490289,1729330240520,-150.112233,0.000135,2]
[340490290,1729330240530,-150.112233,0.000135,2]
[340490291,1729330240540,-150.112233,0.000135,2]
[340490292,1729330240552,-150.112233,0.000135,2]
[340490293,1729330240563,-150.112233,0.000135,2]
[340490294,1729330240574,-150.112233,0.000135,2]
[340490295,1729330240585,-150.112233,0.000135,2]
[340490296,1729330240596,-150.112233,0.000135,2]
[340490297,1729330240607,-150.112233,0.000135,2]
[340490298,1729330240617,-150.112233,0.000135,2]
[340490299,1729330240627,-150.112233,0.000135,2]
[340490300,1729330240638,-150.112233,0.000135,2]
[340490301,1729330240647,-150.112233,0.000135,2]
[340490302,1729330240657,-150.112235,0.000135,2]
[340490303,1729330240667,-151.0,0.000135,2]
[340490304,1729330240677,-150.112233,0.000135,2]
[340490305,1729330240687,-150.112235,0.000135,2]
[340490306,1729330240696,-213.52116,0.000135,2]
[340490307,1729330240706,-213.52116,0.000135,2]
[340490308,1729330240715,-229.493855,0.000135,2]
[340490309,1729330240726,-229.493855,0.000135,2]
[340490310,1729330240736,-782.447234,0.000135,2]
[340490311,1729330240747,-782.447234,0.000135,2]
[340490312,1729330240757,-215.875989,0.000135,2]
[340490313,1729330240768,-215.875989,0.000135,2]
[340490314,1729330240780,-151.0,0.000135,2]
[340490315,1729330240789,-270.649806,0.000135,2]
[340490316,1729330240799,-270.649806,0.000135,2]
[340490317,1729330240810,-151.0,0.000135,2]
[340490318,1729330240820,-151.0,0.000135,2]
[340490319,1729330240830,-163.518947,0.000135,2]
[340490320,1729330240840,-151.0,0.000135,2]
[340490321,1729330240852,-492.157784,0.000135,2]
[340490322,1729330240863,-492.157784,0.000135,2]
[340490323,1729330240872,-643.09561,0.00013501,2]
[340490324,1729330240883,-643.09561,0.00013501,2]
[340490325,1729330240896,-151.0,0.00013501,2]
[340490326,1729330240906,-350.036985,0.00013501,2]
[340490327,1729330240915,-350.036985,0.00013501,2]
[340490328,1729330240928,-326.682568,0.00013501,2]
[340490329,1729330240937,-326.682568,0.00013501,2]
[340490330,1729330240947,-326.682568,0.00013501,2]
[340490331,1729330240956,-326.682568,0.00013501,2]
[340490332,1729330240965,-892.663092,0.00013501,2]
[340490333,1729330240975,-892.663092,0.00013501,2]
[340490334,1729330240984,-151.0,0.00013501,2]
[340490335,1729330240994,-151.0,0.00013501,2]
[340490336,1729330241006,-216.835066,0.00013501,2]
[340490337,1729330241017,-216.835066,0.00013501,2]
[340490338,1729330241027,-151.0,0.00013501,2]
[340490339,1729330241038,-282.537305,0.00013501,2]
[340490340,1729330241050,-151.0,0.00013501,2]
[340490341,1729330241061,-282.537305,0.00013501,2]
[340490342,1729330241070,-151.0,0.00013501,2]
[340490343,1729330241079,-151.0,0.00013501,2]
[340490344,1729330241090,-151.0,0.00013501,2]
[340490345,1729330241100,-151.0,0.00013501,2]
[340490346,1729330241112,-151.0,0.00013501,2]
[340490347,1729330241122,-151.0,0.00013501,2]
[340490348,1729330241131,-151.0,0.00013501,2]
[340490349,1729330241143,-194.870088,0.00013501,2]
[340490350,1729330241153,-194.870088,0.00013501,2]
[340490351,1729330241163,-330.059172,0.00013501,2]
[340490352,1729330241173,-151.0,0.00013501,2]
[340490353,1729330241185,-330.059172,0.00013501,2]
[340490354,1729330241196,-151.0,0.00013501,2]
[340490355,1729330241206,-1013.109216,0.00013501,2]
[340490356,1729330241216,-1013.109216,0.00013501,2]
[340490357,1729330241227,-213.52116,0.00013501,2]
[340490358,1729330241247,-213.52116,0.00013501,2]
[340490359,1729330241268,-151.0,0.00013501,2]
[340490360,1729330241284,-1739.526739,0.00013501,2]
[340490361,1729330241301,-1739.526739,0.00013501,2]
[340490362,1729330241319,-229.493855,0.00013501,2]
[340490363,1729330241336,-151.0,0.00013501,2]
[340490364,1729330241354,-229.493855,0.00013501,2]
[340490365,1729330241369,-625.978929,0.00013501,2]
[340490366,1729330241385,-782.447234,0.00013501,2]
[340490367,1729330241407,-625.978929,0.00013501,2]
[340490368,1729330241418,-782.447234,0.00013501,2]
[340490369,1729330241431,-215.875989,0.00013501,2]
[340490370,1729330241448,-215.875989,0.00013501,2]
[340490371,1729330241464,-270.649806,0.00013501,2]
[340490372,1729330241483,-270.649806,0.00013501,2]
[340490373,1729330241498,-3115.568103,0.00013501,2]
[340490374,1729330241511,-3115.568103,0.00013501,2]
[340490375,1729330241527,-151.0,0.00013501,2]
[340490376,1729330241545,-151.0,0.00013501,2]
[340490377,1729330241561,-151.0,0.00013501,2]
[340490378,1729330241578,-492.157784,0.00013501,2]
[340490379,1729330241593,-492.157784,0.00013501,2]
[340490380,1729330241606,-5614.02080286,0.00013502,2]
[340490381,1729330241620,-150.0,0.00013502,2]
[340490382,1729330241636,-228.764385,0.00013508,2]
[340490383,1729330241657,-330.059172,0.00013508,2]
[340490384,1729330241670,-330.059172,0.00013508,2]
[340490385,1729330241683,-151.0,0.00013508,2]
[340490386,1729330241697,-1739.526739,0.00013508,2]
[340490387,1729330241712,-1739.526739,0.00013508,2]
[340490388,1729330241725,-151.0,0.00013508,2]
[340490389,1729330241740,-625.978929,0.00013508,2]
[340490390,1729330241755,-625.978929,0.00013508,2]
[340490391,1729330241769,-215.875989,0.00013508,2]
[340490392,1729330241783,-215.875989,0.00013508,2]
[340490393,1729330241795,-270.649806,0.00013508,2]
[340490394,1729330241810,-270.649806,0.00013508,2]
[340490395,1729330241824,-3115.568103,0.00013508,2]
[340490396,1729330241837,-3115.568103,0.00013508,2]
[340490397,1729330241853,-151.0,0.00013508,2]
[340490398,1729330241867,-151.0,0.00013508,2]
[340490399,1729330241881,-151.0,0.00013508,2]
[340490400,1729330241897,-492.157784,0.00013508,2]
[340490401,1729330241912,-492.157784,0.00013508,2]
[340490402,1729330241927,-643.09561,0.00013512,2]
[340490403,1729330241941,-643.09561,0.00013512,2]
[340490404,1729330241955,-151.0,0.00013512,2]
[340490405,1729330241971,-350.036985,0.00013512,2]
[340490406,1729330241983,-350.036985,0.00013512,2]
[340490407,1729330241997,-326.682568,0.00013512,2]